bitfinex/quotes_BTCUSD_20240730
["timestamp","ask_amount","ask_price","bid_price","bid_amount"]
[1722313969408,0.86374451,66840.0,66839.0,0.002913]
[1722313970051,0.84905429,66840.0,66839.0,0.002913]
[1722313970217,0.86381012,66840.0,66839.0,0.002913]
[1722313972661,0.88727832,66840.0,66839.0,0.002913]
[1722313973117,0.86381012,66840.0,66839.0,0.002913]
[1722313973545,0.86379728,66840.0,66839.0,0.002913]
[1722313973776,0.98564499,66840.0,66839.0,0.002913]
[1722313974017,0.98560615,66840.0,66839.0,0.002913]
[1722313975813,0.98560442,66840.0,66839.0,0.002913]
[1722313976380,1.00907259,66840.0,66839.0,0.002913]
[1722313976738,0.99562731,66840.0,66839.0,0.002913]
[1722313976963,0.98562731,66840.0,66839.0,0.002913]
[1722313977169,1.22500431,66840.0,66839.0,0.002913]
[1722313977802,1.38100431,66840.0,66839.0,0.002913]
[1722313977950,1.23500431,66840.0,66839.0,0.002913]
[1722313978570,0.98562731,66840.0,66839.0,0.002913]
[1722313979089,1.23500431,66840.0,66839.0,0.002913]
[1722313979289,1.22500431,66840.0,66839.0,0.002913]
[1722313979747,1.22500431,66840.0,66839.0,0.000913]
[1722313979897,1.22900431,66840.0,66839.0,0.000913]
[1722313980103,1.25226079,66840.0,66839.0,0.000913]
[1722313980799,1.26226079,66840.0,66839.0,0.000913]
[1722313982202,1.26826079,66840.0,66839.0,0.001913]
[1722313982773,1.2682484,66840.0,66839.0,0.001913]
[1722313983182,1.41888144,66840.0,66839.0,0.001913]
[1722313983319,1.55928144,66840.0,66839.0,0.001913]
[1722313985613,1.54478067,66840.0,66839.0,0.001913]
[1722313985827,1.55864584,66840.0,66839.0,0.001913]
[1722313986339,1.55866555,66840.0,66839.0,0.001913]
[1722313986971,1.41826555,66840.0,66839.0,0.001913]
[1722313987156,1.41826555,66840.0,66839.0,0.063113]
[1722313987354,1.28641784,66840.0,66839.0,0.143713]
[1722313987964,1.28643884,66840.0,66839.0,0.082513]
[1722313988989,1.28649893,66840.0,66839.0,0.082513]
[1722313989616,1.28649893,66840.0,66839.0,0.001913]
[1722313991327,1.29641348,66840.0,66839.0,0.001913]
[1722313991534,1.4371078,66840.0,66839.0,0.001913]
[1722313992079,1.4471078,66840.0,66839.0,0.001913]
[1722313992288,1.4371078,66840.0,66839.0,0.001913]
[1722313992707,1.4471078,66840.0,66839.0,0.001913]
[1722313992940,1.5929078,66840.0,66839.0,0.001913]
[1722313995785,1.59290369,66840.0,66839.0,0.001913]
[1722313996556,1.43710369,66840.0,66839.0,0.001913]
[1722313996760,1.43710369,66840.0,66839.0,0.081813]
[1722313996980,1.43710369,66840.0,66839.0,0.145513]
[1722313996981,1.41363506,66840.0,66839.0,0.145513]
[1722313998264,1.57543506,66840.0,66839.0,0.145513]
[1722313998458,1.2741077,66840.0,66839.0,0.145513]
[1722313999506,1.3594077,66840.0,66839.0,0.145513]
[1722313999706,1.3594627,66840.0,66839.0,0.145513]
[1722314000250,1.38293092,66840.0,66839.0,0.145513]
[1722314001350,1.38320097,66840.0,66839.0,0.145513]
[1722314001559,1.45262604,66840.0,66839.0,0.145513]
[1722314002436,1.45251032,66840.0,66839.0,0.145513]
[1722314002637,1.46251032,66840.0,66839.0,0.081813]
[1722314002817,1.45251032,66840.0,66839.0,0.081813]
[1722314003369,1.60314336,66840.0,66839.0,0.081813]
[1722314005598,1.59905762,66840.0,66839.0,0.081813]
[1722314005772,1.60342287,66840.0,66839.0,0.081813]
[1722314008327,1.60342287,66840.0,66839.0,0.146313]
[1722314008328,1.5339978,66840.0,66839.0,0.146313]
[1722314008907,1.51963255,66840.0,66839.0,0.146313]
[1722314009114,1.53399415,66840.0,66839.0,0.146313]
[1722314009314,1.51052593,66840.0,66839.0,0.146313]
[1722314012312,1.49616433,66840.0,66839.0,0.146313]
[1722314012518,1.68478245,66840.0,66839.0,0.146313]
[1722314013062,1.68478253,66840.0,66839.0,0.146313]
[1722314013516,1.68478253,66840.0,66839.0,0.14593503]
[1722314014117,1.53408821,66840.0,66839.0,0.14593503]
[1722314015575,1.51963255,66840.0,66839.0,0.14593503]
[1722314015765,1.5341259,66840.0,66839.0,0.14593503]
[1722314016327,1.2947489,66840.0,66839.0,0.14593503]
[1722314017335,1.27128068,66840.0,66839.0,0.14593503]
[1722314018986,1.27128929,66840.0,66839.0,0.14593503]
[1722314020752,1.29475751,66840.0,66839.0,0.14593503]
[1722314021312,1.27128929,66840.0,66839.0,0.14593503]
[1722314022368,1.27128649,66840.0,66839.0,0.14593503]
[1722314024471,1.29475471,66840.0,66839.0,0.14593503]
[1722314024690,1.44544903,66840.0,66839.0,0.14593503]
[1722314025644,1.44547467,66840.0,66839.0,0.14593503]
[1722314026043,1.19495555,66840.0,66839.0,0.14593503]
[1722314026245,1.20944039,66840.0,66839.0,0.14593503]
[1722314027877,1.20928919,66840.0,66839.0,0.14593503]
[1722314028108,1.29458919,66840.0,66839.0,0.14593503]
[1722314029504,1.2854339,66840.0,66839.0,0.14593503]
[1722314030686,1.26196568,66840.0,66839.0,0.14593503]
[1722314033598,1.39007183,66840.0,66839.0,0.14593503]
[1722314033793,1.41353999,66840.0,66839.0,0.14593503]
[1722314034200,1.39007183,66840.0,66839.0,0.14593503]
[1722314034585,1.11133264,66840.0,66839.0,0.14593503]
[1722314035648,1.11117709,66840.0,66839.0,0.14593503]
[1722314037817,1.1346906,66840.0,66839.0,0.14593503]
[1722314038023,1.11122244,66840.0,66839.0,0.14593503]
[1722314038891,1.12550615,66840.0,66839.0,0.14593503]
[1722314039190,1.11128271,66840.0,66839.0,0.14593503]
[1722314039347,1.22429381,66840.0,66839.0,0.14593503]
[1722314041183,1.23347826,66840.0,66839.0,0.14593503]
[1722314041387,1.24766442,66840.0,66839.0,0.14593503]
[1722314041588,0.33122232,66840.0,66839.0,0.14593503]
[1722314041855,0.31703616,66840.0,66839.0,0.14593503]
[1722314042144,0.55641316,66840.0,66839.0,0.14593503]
[1722314042287,0.532945,66840.0,66839.0,0.14593503]
[1722314042496,0.66770191,66840.0,66839.0,0.14593503]
[1722314042801,0.17388,66840.0,66839.0,0.14593503]
[1722314044466,0.16988,66840.0,66839.0,0.14593503]
[1722314044669,0.16988,66840.0,66839.0,0.14693503]
[1722314045577,0.16988,66840.0,66839.0,0.14593503]
[1722314046172,0.16388,66840.0,66839.0,0.14493503]
[1722314047161,0.16388,66840.0,66839.0,0.14693503]
[1722314048183,0.16588,66840.0,66839.0,0.14693503]
[1722314048663,0.16388,66840.0,66839.0,0.14693503]
[1722314048832,0.283568,66840.0,66839.0,0.14693503]
[1722314049129,0.522945,66840.0,66839.0,0.14693503]
[1722314049467,0.283568,66840.0,66839.0,0.14693503]
[1722314049676,0.38179179,66840.0,66839.0,0.14693503]
[1722314050003,0.40525797,66840.0,66839.0,0.14693503]
[1722314050585,0.64463497,66840.0,66839.0,0.14693503]
[1722314050786,0.88401197,66840.0,66839.0,0.14693503]
[1722314051601,0.88401197,66840.0,66839.0,0.00253503]
[1722314051602,0.94584579,66840.0,66839.0,0.00253503]
[1722314051799,1.08045423,66840.0,66839.0,0.00253503]
[1722314052023,0.94584579,66840.0,66839.0,0.00253503]
[1722314052661,1.18522279,66840.0,66839.0,0.00253503]
[1722314055080,1.20869069,66840.0,66839.0,0.00253503]
[1722314055301,1.18522279,66840.0,66839.0,0.00253503]
[1722314056550,1.20869069,66840.0,66839.0,0.00253503]
[1722314057694,1.21743213,66840.0,66839.0,0.00253503]
[1722314058712,1.19396423,66840.0,66839.0,0.00253503]
[1722314061847,1.18896423,66840.0,66839.0,0.00253503]
[1722314062045,1.11420856,66840.0,66839.0,0.00253503]
[1722314062468,1.11503856,66840.0,66839.0,0.00253503]
[1722314062679,1.11503856,66840.0,66839.0,0.08483503]
[1722314066243,1.26652259,66840.0,66839.0,0.08483503]
[1722314066660,1.26653022,66840.0,66839.0,0.08483503]
[1722314067833,1.26653441,66840.0,66839.0,0.08483503]
[1722314068191,1.11503856,66840.0,66839.0,0.08483503]
[1722314068510,1.26653441,66840.0,66839.0,0.08483503]
[1722314071188,1.26654797,66840.0,66839.0,0.08683503]
[1722314073378,1.18124797,66840.0,66839.0,0.08683503]
[1722314073608,0.518775,66840.0,66839.0,0.15343503]
[1722314073862,0.65344417,66840.0,66839.0,0.15343503]
[1722314074113,0.518775,66840.0,66839.0,0.15343503]
[1722314076911,0.54224247,66840.0,66839.0,0.15343503]
[1722314079760,0.54024247,66840.0,66839.0,0.15143503]
[1722314080116,0.30086547,66840.0,66839.0,0.15143503]
[1722314087058,0.54024247,66840.0,66839.0,0.15143503]
[1722314087303,0.30086547,66840.0,66839.0,0.15143503]
[1722314090231,0.54024247,66840.0,66839.0,0.15143503]
[1722314093554,0.87104777,66840.0,66839.0,0.15143503]
[1722314095922,1.01899647,66840.0,66839.0,0.00253503]
[1722314098196,1.01899647,66840.0,66839.0,0.14433503]
[1722314098914,1.15368567,66840.0,66839.0,0.14433503]
[1722314099118,0.91430867,66840.0,66839.0,0.14433503]
[1722314099323,0.77961947,66840.0,66839.0,0.14433503]
[1722314099642,0.91430867,66840.0,66839.0,0.14433503]
[1722314100818,0.91431042,66840.0,66839.0,0.14433503]
[1722314102498,0.77961947,66840.0,66839.0,0.14433503]
[1722314102918,0.91431693,66840.0,66839.0,0.14433503]
[1722314103104,0.77961947,66840.0,66839.0,0.14433503]
[1722314103312,0.91431667,66840.0,66839.0,0.14433503]
[1722314103666,0.91431985,66840.0,66839.0,0.14433503]
[1722314104314,0.77961947,66840.0,66839.0,0.14433503]
[1722314105300,0.77961947,66840.0,66839.0,0.07873503]
[1722314106130,0.77961947,66840.0,66839.0,0.14053503]
[1722314111925,0.756152,66840.0,66839.0,0.14053503]
[1722314115444,0.77961957,66840.0,66839.0,0.14053503]
[1722314116769,0.756152,66840.0,66839.0,0.14053503]
[1722314118457,0.277398,66840.0,66839.0,0.14053503]
[1722314120671,0.15771,66840.0,66839.0,0.14053503]
[1722314121395,0.31601444,66840.0,66839.0,0.14053503]
[1722314122225,0.43570244,66840.0,66839.0,0.14053503]
[1722314122977,0.30086507,66840.0,66839.0,0.14053503]
[1722314123242,0.43569533,66840.0,66839.0,0.14053503]
[1722314123437,0.43569195,66840.0,66839.0,0.14053503]
[1722314123671,0.30086507,66840.0,66839.0,0.14053503]
[1722314124346,0.41222071,66840.0,66839.0,0.14053503]
[1722314124689,0.41222169,66840.0,66839.0,0.14053503]
[1722314124914,0.277398,66840.0,66839.0,0.14053503]
[1722314125402,0.4122201,66840.0,66839.0,0.14053503]
[1722314125815,0.277398,66840.0,66839.0,0.14053503]
[1722314126036,0.29252981,66840.0,66839.0,0.14053503]
[1722314126248,0.41221757,66840.0,66839.0,0.14053503]
[1722314127355,0.277398,66840.0,66839.0,0.14053503]
[1722314127697,0.43567895,66840.0,66839.0,0.14053503]
[1722314127996,0.41221202,66840.0,66839.0,0.14053503]
[1722314129565,0.277398,66840.0,66839.0,0.14053503]
[1722314129773,0.29251978,66840.0,66839.0,0.14053503]
[1722314129982,0.15771,66840.0,66839.0,0.14053503]
[1722314130185,0.29251855,66840.0,66839.0,0.14053503]
[1722314130390,0.41220655,66840.0,66839.0,0.14053503]
[1722314130580,0.41220652,66840.0,66839.0,0.14053503]
[1722314131003,0.43567342,66840.0,66839.0,0.14053503]
[1722314131164,0.41220652,66840.0,66839.0,0.14053503]
[1722314131791,0.595075,66840.0,66839.0,0.00253503]
[1722314132148,0.516775,66840.0,66839.0,0.00253503]
[1722314132343,0.756152,66840.0,66839.0,0.00253503]
[1722314132773,0.8609527,66840.0,66839.0,0.00253503]
[1722314134628,0.8844198,66840.0,66839.0,0.00253503]
[1722314136424,1.1237968,66840.0,66839.0,0.00253503]
[1722314136607,1.36581512,66840.0,66839.0,0.00253503]
[1722314137190,1.76582516,66840.0,66839.0,0.00253503]
[1722314137581,1.77280684,66840.0,66839.0,0.00253503]
[1722314137782,1.76645618,66840.0,66839.0,0.00253503]
[1722314139479,1.74230119,66840.0,66839.0,0.00253503]
[1722314141040,1.75230119,66840.0,66839.0,0.00253503]
[1722314141364,1.74230119,66840.0,66839.0,0.00253503]
[1722314141739,1.63750049,66840.0,66839.0,0.00253503]
[1722314142364,1.63750049,66840.0,66839.0,0.00053503]
[1722314142567,1.66082528,66840.0,66839.0,0.00053503]
[1722314142960,1.65935633,66840.0,66839.0,0.00153503]
[1722314143164,1.65935633,66840.0,66839.0,0.00253503]
[1722314143441,1.65935633,66840.0,66839.0,0.00153503]
[1722314143442,1.69372381,66840.0,66839.0,0.00153503]
[1722314143698,1.68272381,66840.0,66839.0,0.00153503]
[1722314144049,1.69572381,66840.0,66839.0,0.00253503]
[1722314144379,1.69572849,66840.0,66839.0,0.00253503]
[1722314144764,1.70572849,66840.0,66839.0,0.00253503]
[1722314145155,1.70569851,66840.0,66839.0,0.00253503]
[1722314145956,1.69301352,66840.0,66839.0,0.00253503]
[1722314146160,1.72916949,66840.0,66839.0,0.00253503]
[1722314146362,1.71648247,66840.0,66839.0,0.00253503]
[1722314146609,1.70648247,66840.0,66839.0,0.00253503]
[1722314146805,1.71915528,66840.0,66839.0,0.00253503]
[1722314147183,1.72915528,66840.0,66839.0,0.00253503]
[1722314147385,1.69568633,66840.0,66839.0,0.00253503]
[1722314147561,1.70568633,66840.0,66839.0,0.00253503]
[1722314148556,1.69580097,66840.0,66839.0,0.00253503]
[1722314148966,1.71580097,66840.0,66839.0,0.00253503]
[1722314149393,1.71572203,66840.0,66839.0,0.00253503]
[1722314149911,1.69572203,66840.0,66839.0,0.00253503]
[1722314151102,1.69572203,66840.0,66839.0,0.00215769]
[1722314151764,1.66224755,66840.0,66839.0,0.00215769]
[1722314152742,1.66231869,66840.0,66839.0,0.00215769]
[1722314155067,1.69578826,66840.0,66839.0,0.00215769]
[1722314155208,1.68584532,66840.0,66839.0,0.00215769]
[1722314155909,1.66237575,66840.0,66839.0,0.00215769]
[1722314156111,1.83307007,66840.0,66839.0,0.00215769]
[1722314157130,1.81307007,66840.0,66839.0,0.00215769]
[1722314157951,1.83307007,66840.0,66839.0,0.00215769]
[1722314158739,1.81307007,66840.0,66839.0,0.00215769]
[1722314159463,1.83555832,66840.0,66839.0,0.00215769]
[1722314160708,1.81208861,66840.0,66839.0,0.00215769]
[1722314161279,1.82208861,66840.0,66839.0,0.00215769]
[1722314161681,1.81217238,66840.0,66839.0,0.00215769]
[1722314161882,1.82217238,66840.0,66839.0,0.00215769]
[1722314162112,1.81023336,66840.0,66839.0,0.00215769]
[1722314162342,1.82217223,66840.0,66839.0,0.00215769]
[1722314163969,1.82214701,66840.0,66839.0,0.00215769]
[1722314164168,1.81214701,66840.0,66839.0,0.00215769]
[1722314164383,1.82214701,66840.0,66839.0,0.00215769]
[1722314165022,1.82229196,66840.0,66839.0,0.00215769]
[1722314165443,1.97363402,66840.0,66839.0,0.00215769]
[1722314166196,1.82229196,66840.0,66839.0,0.00215769]
[1722314167899,1.97364903,66840.0,66839.0,0.00215769]
[1722314168157,1.81023336,66840.0,66839.0,0.00215769]
[1722314168378,1.8222491,66840.0,66839.0,0.00215769]
[1722314168498,1.84571842,66840.0,66839.0,0.00215769]
[1722314168732,1.8222491,66840.0,66839.0,0.00215769]
[1722314168934,1.8122491,66840.0,66839.0,0.00215769]
[1722314169135,1.8222491,66840.0,66839.0,0.00215769]
[1722314169337,1.6785491,66840.0,66839.0,0.00215769]
[1722314169960,1.6685491,66840.0,66839.0,0.00215769]
[1722314170327,1.6785491,66840.0,66839.0,0.00215769]
[1722314171529,1.67874093,66840.0,66839.0,0.00215769]
[1722314172091,1.67873955,66840.0,66839.0,0.00215769]
[1722314173038,1.66873955,66840.0,66839.0,0.00215769]
[1722314173398,1.67873955,66840.0,66839.0,0.00215769]
[1722314174734,1.68873955,66840.0,66839.0,0.00215769]
[1722314174984,1.6787399,66840.0,66839.0,0.00215769]
[1722314175654,1.67862751,66840.0,66839.0,0.00215769]
[1722314176590,1.70209692,66840.0,66839.0,0.00215769]
[1722314176787,1.71209692,66840.0,66839.0,0.00215769]
[1722314177003,1.077246,66837.0,66836.0,0.0015542]
[1722314177193,1.32527319,66837.0,66836.0,0.0015542]
[1722314177518,1.32521734,66837.0,66836.0,0.0015542]
[1722314178194,1.32521734,66837.0,66835.0,0.0833]
[1722314178195,1.077259,66836.0,66835.0,0.0833]
[1722314178491,1.23993034,66836.0,66835.0,0.0833]
[1722314179443,1.24693034,66836.0,66835.0,0.0843]
[1722314179921,1.39762466,66836.0,66835.0,0.0843]
[1722314180344,1.40562466,66836.0,66835.0,0.0853]
[1722314181483,1.41705578,66836.0,66835.0,0.0853]
[1722314181700,1.42895431,66836.0,66835.0,0.0853]
[1722314184877,1.4057212,66836.0,66835.0,0.0853]
[1722314187973,1.42919085,66836.0,66835.0,0.0853]
[1722314188144,1.41705601,66836.0,66835.0,0.0853]
[1722314188348,1.40579226,66836.0,66835.0,0.0853]
[1722314188771,1.40584997,66836.0,66835.0,0.0853]
[1722314190621,1.40579502,66836.0,66835.0,0.0853]
[1722314191604,1.42933719,66836.0,66835.0,0.0853]
[1722314191966,1.40586754,66836.0,66835.0,0.0853]
[1722314194719,1.39358636,66836.0,66835.0,0.0853]
[1722314194988,1.40567055,66836.0,66835.0,0.0853]
[1722314195307,1.42914016,66836.0,66835.0,0.0853]
[1722314196635,1.40567055,66836.0,66835.0,0.0853]
[1722314197155,1.225727,66832.0,66831.0,0.0015542]
[1722314197358,1.225727,66832.0,66830.0,2.0]
[1722314197359,0.766922,66831.0,66830.0,2.0]
[1722314197561,1.50815921,66831.0,66830.0,2.0]
[1722314197917,1.83931647,66831.0,66830.0,2.0]
[1722314198088,2.03460208,66831.0,66830.0,2.0]
[1722314198251,1.99094605,66831.0,66830.0,2.0]
[1722314198452,2.03950441,66831.0,66830.0,2.0]
[1722314198652,2.05250441,66831.0,66830.0,2.001]
[1722314199109,1.99094605,66831.0,66830.0,2.0]
[1722314199946,2.01441965,66831.0,66830.0,2.0]
[1722314200121,1.99094605,66831.0,66830.0,2.0]
[1722314200593,2.19195244,66831.0,66830.0,2.0]
[1722314200763,2.19195244,66831.0,66830.0,2.001]
[1722314200764,1.76099783,66831.0,66830.0,2.001]
[1722314200969,2.00040683,66831.0,66830.0,2.001]
[1722314201174,2.0008063,66831.0,66830.0,2.001]
[1722314201372,2.0208063,66831.0,66830.0,2.001]
[1722314201701,2.32095969,66831.0,66830.0,2.001]
[1722314201928,2.09996184,66831.0,66830.0,2.001]
[1722314202132,2.32095969,66831.0,66830.0,2.001]
[1722314202337,2.33495969,66831.0,66830.0,2.001]
[1722314202491,2.0437394,66831.0,66830.0,2.001]
[1722314203513,2.053213,66831.0,66830.0,2.001]
[1722314203851,2.067213,66831.0,66830.0,2.001]
[1722314204191,2.053213,66831.0,66830.0,2.001]
[1722314204387,2.05322269,66831.0,66830.0,2.001]
[1722314204616,2.06722269,66831.0,66830.0,2.001]
[1722314204844,2.00870946,66831.0,66830.0,2.001]
[1722314205098,2.04374869,66831.0,66830.0,2.001]
[1722314205374,2.02974869,66831.0,66830.0,2.0]
[1722314205541,2.02974869,66831.0,66830.0,1.94692044]
[1722314205746,2.02974869,66831.0,66830.0,1.89327044]
[1722314206143,2.04374869,66831.0,66830.0,1.89327044]
[1722314206281,2.04374869,66831.0,66830.0,1.83926044]
[1722314206282,2.19517619,66831.0,66830.0,1.83926044]
[1722314206486,2.18117619,66831.0,66830.0,1.83926044]
[1722314207593,2.19501309,66831.0,66830.0,1.83926044]
[1722314208137,2.0436008,66831.0,66830.0,1.72418644]
[1722314209236,2.2830098,66831.0,66830.0,1.32828723]
[1722314209436,2.2830098,66831.0,66830.0,1.20870667]
[1722314209771,2.2830098,66831.0,66830.0,1.11892567]
[1722314210324,2.2830098,66831.0,66830.0,1.03820567]
[1722314210642,2.2830098,66831.0,66830.0,0.28200167]
[1722314210888,2.2827172,66831.0,66830.0,0.22295367]
[1722314211097,2.2827172,66831.0,66830.0,0.20195367]
[1722314211451,2.2827172,66831.0,66830.0,0.05277967]
[1722314211668,2.2827172,66831.0,66830.0,6.7e-07]
[1722314212119,2.30619378,66831.0,66830.0,6.7e-07]
[1722314212354,2.30619378,66831.0,66820.0,0.000913]
[1722314212355,1.412547,66821.0,66820.0,0.000913]
[1722314212555,1.68307878,66821.0,66820.0,0.000913]
[1722314212855,1.78307878,66821.0,66820.0,0.000913]
[1722314213055,1.78307878,66821.0,66811.0,0.1394]
[1722314213056,1.107646,66812.0,66811.0,0.1394]
[1722314213298,1.37817778,66812.0,66811.0,0.1394]
[1722314213496,1.53947352,66812.0,66811.0,0.1394]
[1722314214094,1.53982815,66812.0,66811.0,0.1394]
[1722314214300,0.598737,66807.0,66806.0,0.0634]
[1722314214480,0.84467004,66807.0,66806.0,0.0634]
[1722314214684,1.2219119,66807.0,66806.0,0.0634]
[1722314214879,1.4614069,66807.0,66806.0,0.1394]
[1722314215290,1.3661069,66807.0,66806.0,0.1394]
[1722314215520,1.4614069,66807.0,66806.0,0.1394]
[1722314215915,0.838309,66801.0,66786.0,0.009262]
[1722314216114,1.0084399,66801.0,66786.0,0.009262]
[1722314216514,1.0084399,66801.0,66800.0,0.3422]
[1722314217225,1.0114399,66801.0,66800.0,0.3422]
[1722314217605,1.40158994,66801.0,66800.0,0.3422]
[1722314217952,1.31628994,66801.0,66800.0,0.3422]
[1722314218153,1.40158994,66801.0,66800.0,0.3422]
[1722314218304,1.42507129,66801.0,66800.0,0.3422]
[1722314218959,1.42907129,66801.0,66800.0,0.3372]
[1722314220955,1.49620782,66801.0,66800.0,0.3372]
[1722314221202,1.42907129,66801.0,66800.0,0.3372]
[1722314221443,1.43907129,66801.0,66800.0,0.3372]
[1722314221674,1.49445287,66801.0,66800.0,0.195]
[1722314222429,1.59445287,66801.0,66800.0,0.195]
[1722314222633,1.59045287,66801.0,66800.0,0.195913]
[1722314222841,1.56712707,66801.0,66800.0,0.195913]
[1722314223039,1.58112707,66801.0,66800.0,0.195913]
[1722314223444,1.56712707,66801.0,66800.0,0.195913]
[1722314223642,1.89157883,66801.0,66800.0,0.195913]
[1722314223922,2.03978327,66801.0,66800.0,0.195913]
[1722314224203,1.90557883,66801.0,66800.0,0.195913]
[1722314224504,1.89157883,66801.0,66800.0,0.195913]
[1722314224719,1.97117883,66801.0,66800.0,0.195913]
[1722314225267,1.97117883,66801.0,66800.0,0.165973]
[1722314225470,1.97117883,66801.0,66800.0,0.046213]
[1722314225672,1.97117883,66801.0,66800.0,0.016273]
[1722314225673,1.96817883,66801.0,66800.0,0.016273]
[1722314225873,2.0056638,66801.0,66800.0,0.016273]
[1722314226098,1.97012667,66801.0,66800.0,0.016273]
[1722314226303,2.00606325,66801.0,66800.0,0.016273]
[1722314226824,1.99206325,66801.0,66800.0,0.016273]
[1722314227165,1.95457828,66801.0,66800.0,0.016273]
[1722314227363,1.64423038,66801.0,66800.0,0.016273]
[1722314227560,1.66074738,66801.0,66800.0,0.016273]
[1722314227831,1.85373295,66801.0,66800.0,0.016273]
[1722314228037,1.72804738,66801.0,66800.0,0.016273]
[1722314228261,1.75604738,66801.0,66800.0,0.016273]
[1722314228407,1.9067417,66801.0,66800.0,0.016273]
[1722314228929,1.99607621,66801.0,66800.0,0.016273]
[1722314229169,1.99607772,66801.0,66800.0,0.016273]
[1722314229379,1.96014123,66801.0,66800.0,0.016273]
[1722314229583,1.99621352,66801.0,66800.0,0.016273]
[1722314229963,2.13751374,66801.0,66800.0,0.016273]
[1722314230166,2.04817763,66801.0,66800.0,0.016273]
[1722314230548,2.16098143,66801.0,66800.0,0.016273]
[1722314230748,2.13749642,66801.0,66800.0,0.016273]
[1722314230969,1.34742,66797.0,66793.0,0.009262]
[1722314231136,1.61942555,66797.0,66793.0,0.009262]
[1722314231336,1.78641484,66797.0,66793.0,0.009262]
[1722314231579,1.71942555,66797.0,66793.0,0.009262]
[1722314231820,1.71916937,66797.0,66793.0,0.009262]
[1722314231964,1.86986369,66797.0,66793.0,0.009262]
[1722314232172,1.60917318,66797.0,66793.0,0.009262]
[1722314232492,1.90404943,66797.0,66793.0,0.009262]
[1722314232688,1.91804943,66797.0,66793.0,0.009262]
[1722314232898,1.93204943,66797.0,66793.0,0.009262]
[1722314233650,1.95553534,66797.0,66793.0,0.009262]
[1722314234075,2.12425656,66797.0,66796.0,1e-06]
[1722314234424,2.03493534,66797.0,66796.0,1e-06]
[1722314234834,2.27446634,66797.0,66796.0,1e-06]
[1722314235350,2.26046634,66797.0,66796.0,1e-06]
[1722314235558,2.24646634,66797.0,66796.0,1e-06]
[1722314235797,2.26046634,66797.0,66796.0,1e-06]
[1722314236002,2.23886427,66797.0,66796.0,1e-06]
[1722314236207,2.26100525,66797.0,66796.0,1e-06]
[1722314236414,2.27500525,66797.0,66796.0,1e-06]
[1722314236641,2.36428471,66797.0,66796.0,1e-06]
[1722314237250,2.36428471,66797.0,66782.0,1e-06]
[1722314237251,0.26459,66783.0,66782.0,1e-06]
[1722314237425,0.77624502,66783.0,66782.0,1e-06]
[1722314237631,1.64346473,66783.0,66782.0,1e-06]
[1722314238008,1.88304573,66783.0,66782.0,1e-06]
[1722314238214,2.03374005,66783.0,66782.0,1e-06]
[1722314239102,1.99926334,66783.0,66782.0,1e-06]
[1722314239324,1.98627292,66783.0,66782.0,1e-06]
[1722314239722,2.00027292,66783.0,66782.0,1e-06]
[1722314240026,2.01427292,66783.0,66782.0,1e-06]
[1722314240673,2.05889757,66783.0,66782.0,1e-06]
[1722314241025,2.06764422,66783.0,66782.0,1e-06]
[1722314241236,2.04651195,66783.0,66782.0,1e-06]
[1722314241436,2.02301957,66783.0,66782.0,1e-06]
[1722314241631,2.06764422,66783.0,66782.0,1e-06]
[1722314242041,2.08999448,66783.0,66782.0,1e-06]
[1722314242468,2.08916905,66783.0,66782.0,1e-06]
[1722314242677,2.02221779,66783.0,66782.0,1e-06]
[1722314243093,2.08916905,66783.0,66782.0,1e-06]
[1722314243616,2.02221779,66783.0,66782.0,1e-06]
[1722314244147,2.08916905,66783.0,66782.0,1e-06]
[1722314244578,2.02221779,66783.0,66782.0,1e-06]
[1722314245716,1.98586901,66783.0,66782.0,1e-06]
[1722314245954,2.02242242,66783.0,66782.0,1e-06]
[1722314246401,2.02242267,66783.0,66782.0,1e-06]
[1722314247748,2.26200367,66783.0,66782.0,1e-06]
[1722314247964,1.383493,66773.0,66772.0,0.009262]
[1722314248174,1.67028368,66773.0,66772.0,0.009262]
[1722314248595,1.71491377,66773.0,66772.0,0.009262]
[1722314249031,1.67095488,66773.0,66772.0,0.009262]
[1722314249250,1.70844859,66773.0,66772.0,0.009262]
[1722314249517,1.403375,66764.0,66763.0,1e-06]
[1722314249775,0.599295,66745.0,66744.0,0.0808]
[1722314249995,1.31466404,66745.0,66744.0,0.1419]
[1722314250550,1.33816496,66745.0,66744.0,0.1419]
[1722314250756,1.39522045,66745.0,66744.0,0.1419]
[1722314251162,1.30992045,66745.0,66744.0,0.1419]
[1722314251727,1.01314696,66745.0,66744.0,0.1419]
[1722314251958,1.02714696,66745.0,66744.0,0.1419]
[1722314252375,1.01314696,66745.0,66744.0,0.1419]
[1722314252592,1.00364604,66745.0,66744.0,0.1419]
[1722314253467,0.98964604,66745.0,66744.0,0.1419]
[1722314253828,1.11751203,66745.0,66744.0,0.1419]
[1722314254210,1.08951203,66745.0,66744.0,0.1419]
[1722314254652,1.10351203,66745.0,66744.0,0.1419]
[1722314255087,1.08951203,66745.0,66744.0,0.1419]
[1722314255631,1.10351203,66745.0,66744.0,0.1419]
[1722314255849,1.14101295,66745.0,66744.0,0.1419]
[1722314256044,1.12701295,66745.0,66744.0,0.1419]
[1722314256322,1.11751203,66745.0,66744.0,0.1419]
[1722314257321,1.10351203,66745.0,66744.0,0.1419]
[1722314257499,1.08951203,66745.0,66744.0,0.1419]
[1722314257695,1.10351203,66745.0,66744.0,0.1419]
[1722314257972,1.01764604,66745.0,66744.0,0.1519]
[1722314258177,1.01764604,66745.0,66744.0,0.1419]
[1722314258379,1.00364604,66745.0,66744.0,0.1419]
[1722314258578,1.10491423,66745.0,66744.0,0.1419]
[1722314259318,1.11891423,66745.0,66744.0,0.1419]
[1722314259727,1.15641506,66745.0,66744.0,0.1419]
[1722314260161,1.13291423,66745.0,66744.0,0.1419]
[1722314260514,1.10491423,66745.0,66744.0,0.1419]
[1722314260819,1.11891423,66745.0,66744.0,0.1419]
[1722314261216,1.10491423,66745.0,66744.0,0.1419]
[1722314261523,1.11891423,66745.0,66744.0,0.1419]
[1722314262101,1.10491423,66745.0,66744.0,0.1419]
[1722314262298,1.11891423,66745.0,66744.0,0.1419]
[1722314263146,1.01764604,66745.0,66744.0,0.1519]
[1722314263386,1.04114687,66745.0,66744.0,0.1519]
[1722314264562,1.01764604,66745.0,66744.0,0.1519]
[1722314265176,0.387577,66745.0,66744.0,0.1519]
[1722314265371,0.387577,66745.0,66744.0,0.1719]
[1722314265372,0.028,66745.0,66744.0,0.1719]
[1722314266213,0.014,66745.0,66744.0,0.1719]
[1722314266351,0.119856,66747.0,66745.0,0.1399]